[Event "Titled Tuesday Blitz August 1 Early 2023"]
[White "Kaplan, Avi Harrison"]
[Black "Baskakov, Egor"]
[WhiteFideId "30934559"]
[BlackFideId "24197866"]
[WhiteElo "2487"]
[BlackElo "2911"]
[Result "0-1"]
[Round "1"]
[TimeControl "180+1"]
[Date "2023.08.01"]
[WhiteClock "0:00:07"]
[BlackClock "0:00:09"]
[Board "27"]

1. e4 {[%clk 0:02:45]}  c5 {[%clk 0:02:59]} 2. c4 {[%clk 0:02:43]}  Nc6 {[%clk 0:02:59]} 3. Nc3 {[%clk 0:02:43]}  g6 {[%clk 0:02:58]} 4. g3 {[%clk 0:02:42]}  Bg7 {[%clk 0:02:59]} 5. Bg2 {[%clk 0:02:43]}  e6 {[%clk 0:02:57]} 6. Nge2 {[%clk 0:02:43]}  Nge7 {[%clk 0:02:57]} 7. O-O {[%clk 0:02:43]}  O-O {[%clk 0:02:58]} 8. d3 {[%clk 0:02:41]}  d6 {[%clk 0:02:55]} 9. Be3 {[%clk 0:02:41]}  Nd4 {[%clk 0:02:54]} 10. Qd2 {[%clk 0:02:39]}  e5 {[%clk 0:02:51]} 11. h3 {[%clk 0:02:37]}  Be6 {[%clk 0:02:46]} 12. Kh2 {[%clk 0:02:36]}  Qd7 {[%clk 0:02:46]} 13. a3 {[%clk 0:02:32]}  Nb3 {[%clk 0:02:44]} 14. Qc2 {[%clk 0:02:17]}  Nxa1 {[%clk 0:02:44]} 15. Rxa1 {[%clk 0:02:18]}  f5 {[%clk 0:02:44]} 16. b4 {[%clk 0:02:09]}  b6 {[%clk 0:02:43]} 17. exf5 {[%clk 0:02:08]}  Bxf5 {[%clk 0:02:39]} 18. Bxa8 {[%clk 0:02:07]}  Rxa8 {[%clk 0:02:40]} 19. Ne4 {[%clk 0:02:01]}  Bxh3 {[%clk 0:02:36]} 20. Rh1 {[%clk 0:01:38]}  Bg4 {[%clk 0:02:32]} 21. Kg2 {[%clk 0:01:14]}  Rf8 {[%clk 0:02:31]} 22. Ng1 {[%clk 0:01:14]}  Nf5 {[%clk 0:02:26]} 23. Ng5 {[%clk 0:00:56]}  Nxe3+ {[%clk 0:02:18]} 24. fxe3 {[%clk 0:00:55]}  h6 {[%clk 0:02:18]} 25. Ne4 {[%clk 0:00:53]}  cxb4 {[%clk 0:02:12]} 26. axb4 {[%clk 0:00:53]}  d5 {[%clk 0:02:12]} 27. cxd5 {[%clk 0:00:49]}  Qxd5 {[%clk 0:02:13]} 28. Rh4 {[%clk 0:00:42]}  h5 {[%clk 0:02:10]} 29. Rh2 {[%clk 0:00:35]}  Kh8 {[%clk 0:02:02]} 30. Kh1 {[%clk 0:00:32]}  Rd8 {[%clk 0:01:56]} 31. Rd2 {[%clk 0:00:30]}  a5 {[%clk 0:01:40]} 32. bxa5 {[%clk 0:00:29]}  bxa5 {[%clk 0:01:41]} 33. Kh2 {[%clk 0:00:28]}  Qd7 {[%clk 0:01:31]} 34. Ng5 {[%clk 0:00:19]}  Qf5 {[%clk 0:01:29]} 35. N1h3 {[%clk 0:00:15]}  Qd7 {[%clk 0:01:14]} 36. e4 {[%clk 0:00:12]}  Bf6 {[%clk 0:01:08]} 37. Rf2 {[%clk 0:00:09]}  Qe7 {[%clk 0:01:05]} 38. Qc6 {[%clk 0:00:06]}  Kg7 {[%clk 0:00:48]} 39. Nf3 {[%clk 0:00:02]}  Rxd3 {[%clk 0:00:46]} 40. Nfg1 {[%clk 0:00:01]}  h4 {[%clk 0:00:45]} 41. gxh4 {[%clk 0:00:01]}  Bxh4 {[%clk 0:00:46]} 42. Rg2 {[%clk 0:00:02]}  Be6 {[%clk 0:00:41]} 43. Qa6 {[%clk 0:00:02]}  Ra3 {[%clk 0:00:36]} 44. Qb5 {[%clk 0:00:02]}  Qf6 {[%clk 0:00:32]} 45. Qb7+ {[%clk 0:00:02]}  Bf7 {[%clk 0:00:32]} 46. Qd7 {[%clk 0:00:02]}  Rc3 {[%clk 0:00:19]} 47. Qg4 {[%clk 0:00:02]}  Be1 {[%clk 0:00:18]} 48. Qe2 {[%clk 0:00:01]}  Bh4 {[%clk 0:00:17]} 49. Qg4 {[%clk 0:00:02]}  Be6 {[%clk 0:00:15]} 50. Qd1 {[%clk 0:00:01]}  Rc7 {[%clk 0:00:14]} 51. Qd6 {[%clk 0:00:01]}  Rf7 {[%clk 0:00:14]} 52. Qa6 {[%clk 0:00:01]}  Bxh3 {[%clk 0:00:14]} 53. Qxf6+ {[%clk 0:00:01]}  Bxf6 {[%clk 0:00:15]} 54. Kxh3 {[%clk 0:00:02]}  Ra7 {[%clk 0:00:15]} 55. Ra2 {[%clk 0:00:02]}  a4 {[%clk 0:00:16]} 56. Nf3 {[%clk 0:00:03]}  a3 {[%clk 0:00:16]} 57. Nd2 {[%clk 0:00:04]}  Be7 {[%clk 0:00:16]} 58. Nc4 {[%clk 0:00:04]}  Kf6 {[%clk 0:00:16]} 59. Kg4 {[%clk 0:00:04]}  Ra4 {[%clk 0:00:16]} 60. Ne3 {[%clk 0:00:04]}  Rxe4+ {[%clk 0:00:16]} 61. Kf3 {[%clk 0:00:04]}  Ra4 {[%clk 0:00:16]} 62. Nd5+ {[%clk 0:00:03]}  Ke6 {[%clk 0:00:17]} 63. Nb6 {[%clk 0:00:03]}  Rf4+ {[%clk 0:00:16]} 64. Ke3 {[%clk 0:00:03]}  Bc5+ {[%clk 0:00:16]} 65. Kd3 {[%clk 0:00:02]}  Bxb6 {[%clk 0:00:17]} 66. Rc2 {[%clk 0:00:02]}  Bd4 {[%clk 0:00:17]} 67. Rd2 {[%clk 0:00:02]}  Kf5 {[%clk 0:00:18]} 68. Rc2 {[%clk 0:00:02]}  g5 {[%clk 0:00:17]} 69. Ke2 {[%clk 0:00:02]}  Ke4 {[%clk 0:00:16]} 70. Rc1 {[%clk 0:00:02]}  Rf2+ {[%clk 0:00:16]} 71. Ke1 {[%clk 0:00:02]}  Ke3 {[%clk 0:00:16]} 72. Ra1 {[%clk 0:00:02]}  Bxa1 {[%clk 0:00:16]} 73. Kd1 {[%clk 0:00:03]}  Bb2 {[%clk 0:00:16]} 74. Ke1 {[%clk 0:00:03]}  g4 {[%clk 0:00:15]} 75. Kd1 {[%clk 0:00:04]}  g3 {[%clk 0:00:16]} 76. Ke1 {[%clk 0:00:05]}  g2 {[%clk 0:00:16]} 77. Kd1 {[%clk 0:00:06]}  Bd4 {[%clk 0:00:09]} 78. Ke1 {[%clk 0:00:07]}  Rf1# {[%clk 0:00:09]} 0-1


[Site "https://www.chess.com"]

[Event "Titled Tuesday Blitz August 1 Early 2023"]
[White "Demidov, Mikhail"]
[Black "Kleiman, Jake"]
[WhiteFideId "4197143"]
[BlackFideId "2020041"]
[WhiteElo "2910"]
[BlackElo "2486"]
[Result "1-0"]
[Round "1"]
[TimeControl "180+1"]
[Date "2023.08.01"]
[WhiteClock "0:00:09"]
[BlackClock "0:00:03"]
[Board "28"]

1. Nf3 {[%clk 0:02:54]}  Nf6 {[%clk 0:02:46]} 2. g3 {[%clk 0:02:54]}  e6 {[%clk 0:02:46]} 3. Bg2 {[%clk 0:02:54]}  d5 {[%clk 0:02:47]} 4. O-O {[%clk 0:02:54]}  b5 {[%clk 0:02:48]} 5. d3 {[%clk 0:02:54]}  c5 {[%clk 0:02:45]} 6. c4 {[%clk 0:02:54]}  a6 {[%clk 0:02:36]} 7. cxd5 {[%clk 0:02:49]}  Nxd5 {[%clk 0:02:33]} 8. a4 {[%clk 0:02:32]}  Bb7 {[%clk 0:02:29]} 9. axb5 {[%clk 0:02:30]}  axb5 {[%clk 0:02:30]} 10. Rxa8 {[%clk 0:02:30]}  Bxa8 {[%clk 0:02:31]} 11. Na3 {[%clk 0:02:30]}  Nc7 {[%clk 0:02:19]} 12. Be3 {[%clk 0:02:24]}  Be7 {[%clk 0:02:13]} 13. Qc2 {[%clk 0:02:18]}  Nd7 {[%clk 0:02:12]} 14. Rc1 {[%clk 0:02:13]}  O-O {[%clk 0:02:09]} 15. Bf4 {[%clk 0:02:11]}  Bc6 {[%clk 0:01:50]} 16. Qb3 {[%clk 0:01:57]}  Nd5 {[%clk 0:01:42]} 17. Bd2 {[%clk 0:01:43]}  Qb6 {[%clk 0:01:38]} 18. h4 {[%clk 0:01:29]}  h6 {[%clk 0:01:38]} 19. Qc2 {[%clk 0:01:13]}  Rc8 {[%clk 0:01:30]} 20. Nb1 {[%clk 0:01:12]}  Qb7 {[%clk 0:01:20]} 21. Nc3 {[%clk 0:01:08]}  Nb4 {[%clk 0:01:18]} 22. Qd1 {[%clk 0:01:07]}  Ne5 {[%clk 0:01:08]} 23. Ne1 {[%clk 0:01:05]}  Bxg2 {[%clk 0:01:04]} 24. Nxg2 {[%clk 0:01:06]}  Rd8 {[%clk 0:00:59]} 25. Bf4 {[%clk 0:00:37]}  Ng6 {[%clk 0:00:54]} 26. Qf1 {[%clk 0:00:31]}  Bf6 {[%clk 0:00:40]} 27. Be3 {[%clk 0:00:28]}  Bd4 {[%clk 0:00:26]} 28. Bxd4 {[%clk 0:00:27]}  cxd4 {[%clk 0:00:27]} 29. Ne4 {[%clk 0:00:28]}  Qb6 {[%clk 0:00:21]} 30. Qe1 {[%clk 0:00:27]}  Nd5 {[%clk 0:00:20]} 31. Qd1 {[%clk 0:00:26]}  Ra8 {[%clk 0:00:18]} 32. Qc2 {[%clk 0:00:24]}  Ne5 {[%clk 0:00:18]} 33. Qb3 {[%clk 0:00:19]}  Rb8 {[%clk 0:00:15]} 34. Nd2 {[%clk 0:00:19]}  Nc6 {[%clk 0:00:15]} 35. Ne1 {[%clk 0:00:18]}  Ncb4 {[%clk 0:00:15]} 36. Nef3 {[%clk 0:00:17]}  Ra8 {[%clk 0:00:14]} 37. Ne4 {[%clk 0:00:18]}  Rb8 {[%clk 0:00:14]} 38. Ne5 {[%clk 0:00:18]}  Ra8 {[%clk 0:00:13]} 39. Nd2 {[%clk 0:00:17]}  Qb7 {[%clk 0:00:12]} 40. Ndf3 {[%clk 0:00:18]}  Qb6 {[%clk 0:00:12]} 41. h5 {[%clk 0:00:16]}  f6 {[%clk 0:00:09]} 42. Ng6 {[%clk 0:00:15]}  e5 {[%clk 0:00:08]} 43. Ne7+ {[%clk 0:00:15]}  Kh7 {[%clk 0:00:07]} 44. Nxd5 {[%clk 0:00:16]}  Qe6 {[%clk 0:00:07]} 45. Rc5 {[%clk 0:00:11]}  Na6 {[%clk 0:00:04]} 46. Rxb5 {[%clk 0:00:11]}  Nc7 {[%clk 0:00:05]} 47. Rc5 {[%clk 0:00:11]}  Na6 {[%clk 0:00:04]} 48. Ra5 {[%clk 0:00:11]}  Rb8 {[%clk 0:00:04]} 49. Qa2 {[%clk 0:00:10]}  Nb4 {[%clk 0:00:03]} 50. Nxb4 {[%clk 0:00:10]}  Qg4 {[%clk 0:00:04]} 51. Kg2 {[%clk 0:00:09]}  Rxb4 {[%clk 0:00:03]} 52. Ra8 {[%clk 0:00:09]}  Qxh5 {[%clk 0:00:03]} 53. Qg8+ {[%clk 0:00:09]}  Kg6 {[%clk 0:00:03]} 54. Qe8+ {[%clk 0:00:09]} 1-0


[Site "https://www.chess.com"]

[Event "Titled Tuesday Blitz August 1 Early 2023"]
[White "Papayan, Oleg"]
[Black "Perez Ponsa, Federico"]
[WhiteFideId "4193911"]
[BlackFideId "117927"]
[WhiteElo "2485"]
[BlackElo "2908"]
[Result "1-0"]
[Round "1"]
[TimeControl "180+1"]
[Date "2023.08.01"]
[WhiteClock "0:00:07"]
[BlackClock "0:00:06"]
[Board "29"]

1. e4 {[%clk 0:03:00]}  c6 {[%clk 0:02:54]} 2. Nc3 {[%clk 0:02:59]}  d5 {[%clk 0:02:55]} 3. Nf3 {[%clk 0:03:00]}  dxe4 {[%clk 0:02:54]} 4. Nxe4 {[%clk 0:03:01]}  Nf6 {[%clk 0:02:54]} 5. Qe2 {[%clk 0:03:01]}  Na6 {[%clk 0:02:55]} 6. Nxf6+ {[%clk 0:03:00]}  gxf6 {[%clk 0:02:56]} 7. g3 {[%clk 0:02:59]}  Bg4 {[%clk 0:02:31]} 8. Bg2 {[%clk 0:02:57]}  Nb4 {[%clk 0:02:30]} 9. Qc4 {[%clk 0:02:45]}  Qd5 {[%clk 0:01:56]} 10. Qxg4 {[%clk 0:01:46]}  Nxc2+ {[%clk 0:01:52]} 11. Kd1 {[%clk 0:01:47]}  Nxa1 {[%clk 0:01:52]} 12. b3 {[%clk 0:01:35]}  Qa5 {[%clk 0:01:38]} 13. Qa4 {[%clk 0:01:29]}  Qb6 {[%clk 0:01:18]} 14. Rf1 {[%clk 0:00:56]}  O-O-O {[%clk 0:01:04]} 15. Bb2 {[%clk 0:00:56]}  e5 {[%clk 0:00:58]} 16. Bxa1 {[%clk 0:00:54]}  Bb4 {[%clk 0:00:59]} 17. a3 {[%clk 0:00:50]}  Bc5 {[%clk 0:00:58]} 18. b4 {[%clk 0:00:41]}  Bxf2 {[%clk 0:00:53]} 19. Qb3 {[%clk 0:00:41]}  e4 {[%clk 0:00:49]} 20. Nh4 {[%clk 0:00:23]}  Be3 {[%clk 0:00:36]} 21. Bc3 {[%clk 0:00:12]}  Bxd2 {[%clk 0:00:24]} 22. Bxd2 {[%clk 0:00:13]}  e3 {[%clk 0:00:25]} 23. Nf3 {[%clk 0:00:08]}  exd2 {[%clk 0:00:17]} 24. Qxf7 {[%clk 0:00:09]}  Qe3 {[%clk 0:00:13]} 25. Bh3+ {[%clk 0:00:06]}  Kb8 {[%clk 0:00:14]} 26. Qe6 {[%clk 0:00:07]}  Qxa3 {[%clk 0:00:10]} 27. Nxd2 {[%clk 0:00:02]}  Qa1+ {[%clk 0:00:10]} 28. Ke2 {[%clk 0:00:02]}  Rxd2+ {[%clk 0:00:09]} 29. Kxd2 {[%clk 0:00:03]}  Rd8+ {[%clk 0:00:08]} 30. Ke3 {[%clk 0:00:03]}  Qd4+ {[%clk 0:00:06]} 31. Kf3 {[%clk 0:00:04]}  Qxb4 {[%clk 0:00:06]} 32. Qf5 {[%clk 0:00:03]}  Qc3+ {[%clk 0:00:05]} 33. Kg2 {[%clk 0:00:04]}  Rd2+ {[%clk 0:00:05]} 34. Rf2 {[%clk 0:00:04]}  a5 {[%clk 0:00:05]} 35. Qf4+ {[%clk 0:00:05]}  Rd6 {[%clk 0:00:02]} 36. Qxd6+ {[%clk 0:00:05]}  Ka7 {[%clk 0:00:03]} 37. Qxf6 {[%clk 0:00:05]}  Qc4 {[%clk 0:00:03]} 38. Qf4 {[%clk 0:00:05]}  Qd5+ {[%clk 0:00:04]} 39. Qf3 {[%clk 0:00:05]}  Qc5 {[%clk 0:00:04]} 40. Re2 {[%clk 0:00:06]}  b5 {[%clk 0:00:04]} 41. Qe3 {[%clk 0:00:06]}  Qxe3 {[%clk 0:00:04]} 42. Rxe3 {[%clk 0:00:07]}  Kb6 {[%clk 0:00:05]} 43. Bd7 {[%clk 0:00:07]}  a4 {[%clk 0:00:06]} 44. Re6 {[%clk 0:00:07]}  Kc7 {[%clk 0:00:05]} 45. Bxc6 {[%clk 0:00:07]}  a3 {[%clk 0:00:06]} 46. Bxb5 {[%clk 0:00:06]}  a2 {[%clk 0:00:06]} 47. Re1 {[%clk 0:00:07]} 1-0


[Site "https://www.chess.com"]

[Event "Titled Tuesday Blitz August 1 Early 2023"]
[White "Yashmetov, Mikhail"]
[Black "Nguyen, Ngoc Truong Son"]
[WhiteFideId "24198900"]
[BlackFideId "12401110"]
[WhiteElo "2480"]
[BlackElo "2901"]
[Result "0-1"]
[Round "1"]
[TimeControl "180+1"]
[Date "2023.08.01"]
[WhiteClock "0:00:01"]
[BlackClock "0:00:12"]
[Board "31"]

1. d4 {[%clk 0:03:00]}  g6 {[%clk 0:02:58]} 2. c4 {[%clk 0:03:01]}  Bg7 {[%clk 0:02:58]} 3. Nf3 {[%clk 0:03:01]}  d6 {[%clk 0:02:58]} 4. g3 {[%clk 0:03:01]}  e5 {[%clk 0:02:57]} 5. Nc3 {[%clk 0:02:50]}  Nc6 {[%clk 0:02:55]} 6. dxe5 {[%clk 0:02:50]}  Nxe5 {[%clk 0:02:52]} 7. Bg2 {[%clk 0:02:50]}  Ne7 {[%clk 0:02:47]} 8. Nxe5 {[%clk 0:02:22]}  dxe5 {[%clk 0:02:48]} 9. Qxd8+ {[%clk 0:02:12]}  Kxd8 {[%clk 0:02:48]} 10. O-O {[%clk 0:02:13]}  c6 {[%clk 0:02:49]} 11. Rd1+ {[%clk 0:02:08]}  Kc7 {[%clk 0:02:49]} 12. Bg5 {[%clk 0:02:08]}  f6 {[%clk 0:02:48]} 13. Be3 {[%clk 0:02:07]}  Be6 {[%clk 0:02:49]} 14. b3 {[%clk 0:02:06]}  Rhd8 {[%clk 0:02:47]} 15. Bc5 {[%clk 0:01:58]}  Nf5 {[%clk 0:02:31]} 16. e3 {[%clk 0:01:32]}  b6 {[%clk 0:02:26]} 17. Ba3 {[%clk 0:01:22]}  Bf8 {[%clk 0:02:14]} 18. Bxf8 {[%clk 0:00:51]}  Rxf8 {[%clk 0:02:14]} 19. c5 {[%clk 0:00:51]}  b5 {[%clk 0:02:07]} 20. g4 {[%clk 0:00:43]}  Ne7 {[%clk 0:02:05]} 21. h3 {[%clk 0:00:33]}  Rad8 {[%clk 0:02:04]} 22. Kf1 {[%clk 0:00:33]}  f5 {[%clk 0:02:01]} 23. gxf5 {[%clk 0:00:29]}  gxf5 {[%clk 0:02:02]} 24. Rxd8 {[%clk 0:00:25]}  Rxd8 {[%clk 0:02:02]} 25. Rd1 {[%clk 0:00:26]}  Rxd1+ {[%clk 0:02:00]} 26. Nxd1 {[%clk 0:00:27]}  a5 {[%clk 0:02:00]} 27. Ke2 {[%clk 0:00:25]}  b4 {[%clk 0:01:49]} 28. Kd2 {[%clk 0:00:22]}  Ng8 {[%clk 0:01:44]} 29. f4 {[%clk 0:00:20]}  Nf6 {[%clk 0:01:41]} 30. Nb2 {[%clk 0:00:15]}  e4 {[%clk 0:01:26]} 31. Bf1 {[%clk 0:00:10]}  Nd7 {[%clk 0:01:24]} 32. Na4 {[%clk 0:00:11]}  Bf7 {[%clk 0:01:20]} 33. Be2 {[%clk 0:00:10]}  Kd8 {[%clk 0:01:19]} 34. Bd1 {[%clk 0:00:08]}  Ke7 {[%clk 0:01:18]} 35. Ke1 {[%clk 0:00:08]}  Kd8 {[%clk 0:00:56]} 36. Be2 {[%clk 0:00:09]}  Kc7 {[%clk 0:00:55]} 37. Kf2 {[%clk 0:00:09]}  Nf6 {[%clk 0:00:55]} 38. Ke1 {[%clk 0:00:06]}  Bh5 {[%clk 0:00:52]} 39. Bxh5 {[%clk 0:00:02]}  Nxh5 {[%clk 0:00:53]} 40. Ke2 {[%clk 0:00:03]}  Nf6 {[%clk 0:00:53]} 41. Nb2 {[%clk 0:00:03]}  Nd7 {[%clk 0:00:49]} 42. Na4 {[%clk 0:00:04]}  Kb7 {[%clk 0:00:49]} 43. Kd2 {[%clk 0:00:04]}  Ka6 {[%clk 0:00:49]} 44. Nb2 {[%clk 0:00:02]}  Nxc5 {[%clk 0:00:46]} 45. Nc4 {[%clk 0:00:02]}  Nb7 {[%clk 0:00:43]} 46. Ne5 {[%clk 0:00:02]}  Kb5 {[%clk 0:00:42]} 47. Nf7 {[%clk 0:00:02]}  c5 {[%clk 0:00:40]} 48. Kc2 {[%clk 0:00:03]}  c4 {[%clk 0:00:34]} 49. h4 {[%clk 0:00:02]}  a4 {[%clk 0:00:26]} 50. h5 {[%clk 0:00:02]}  cxb3+ {[%clk 0:00:19]} 51. axb3 {[%clk 0:00:03]}  axb3+ {[%clk 0:00:18]} 52. Kxb3 {[%clk 0:00:04]}  Nc5+ {[%clk 0:00:18]} 53. Kb2 {[%clk 0:00:05]}  Ka4 {[%clk 0:00:17]} 54. Ng5 {[%clk 0:00:02]}  Nd3+ {[%clk 0:00:16]} 55. Kc2 {[%clk 0:00:03]}  b3+ {[%clk 0:00:16]} 56. Kc3 {[%clk 0:00:02]}  b2 {[%clk 0:00:16]} 57. Kc2 {[%clk 0:00:02]}  Ka3 {[%clk 0:00:16]} 58. Kb1 {[%clk 0:00:02]}  Nb4 {[%clk 0:00:16]} 59. Ne6 {[%clk 0:00:02]}  Nd5 {[%clk 0:00:15]} 60. Kc2 {[%clk 0:00:01]}  Nxe3+ {[%clk 0:00:14]} 61. Kd2 {[%clk 0:00:01]}  b1=Q {[%clk 0:00:12]} 62. Kxe3 {[%clk 0:00:02]}  Qb3+ {[%clk 0:00:12]} 63. Kd4 {[%clk 0:00:01]}  Qxe6 {[%clk 0:00:12]} 0-1


[Site "https://www.chess.com"]

[Event "Titled Tuesday Blitz August 1 Early 2023"]
[White "Galchenko, Matvey"]
[Black "NicolaiMaxime"]
[WhiteFideId "24175480"]
[WhiteElo "2900"]
[BlackElo "2480"]
[Result "1/2-1/2"]
[Round "1"]
[TimeControl "180+1"]
[Date "2023.08.01"]
[WhiteClock "0:00:04"]
[BlackClock "0:00:02"]
[Board "32"]

1. f4 {[%clk 0:02:56]}  d5 {[%clk 0:02:59]} 2. Nf3 {[%clk 0:02:55]}  Nh6 {[%clk 0:02:59]} 3. g3 {[%clk 0:02:56]}  g6 {[%clk 0:02:59]} 4. Bg2 {[%clk 0:02:56]}  Bg7 {[%clk 0:02:59]} 5. O-O {[%clk 0:02:57]}  O-O {[%clk 0:03:00]} 6. d3 {[%clk 0:02:58]}  c5 {[%clk 0:02:58]} 7. e4 {[%clk 0:02:58]}  Nc6 {[%clk 0:02:56]} 8. Nc3 {[%clk 0:02:58]}  d4 {[%clk 0:02:54]} 9. Ne2 {[%clk 0:02:56]}  e5 {[%clk 0:02:54]} 10. h3 {[%clk 0:02:52]}  f6 {[%clk 0:02:49]} 11. g4 {[%clk 0:02:51]}  Nf7 {[%clk 0:02:49]} 12. f5 {[%clk 0:02:49]}  g5 {[%clk 0:02:43]} 13. h4 {[%clk 0:02:45]}  h6 {[%clk 0:02:42]} 14. Ng3 {[%clk 0:02:46]}  Qe7 {[%clk 0:02:33]} 15. a4 {[%clk 0:02:42]}  Bd7 {[%clk 0:02:29]} 16. Bd2 {[%clk 0:02:39]}  Rfc8 {[%clk 0:02:28]} 17. b3 {[%clk 0:02:38]}  b6 {[%clk 0:02:27]} 18. Kf2 {[%clk 0:02:31]}  Kf8 {[%clk 0:02:26]} 19. Nh5 {[%clk 0:02:29]}  Bh8 {[%clk 0:02:25]} 20. Rh1 {[%clk 0:02:21]}  Ke8 {[%clk 0:02:22]} 21. hxg5 {[%clk 0:02:20]}  hxg5 {[%clk 0:02:22]} 22. Ng3 {[%clk 0:02:21]}  Kd8 {[%clk 0:02:22]} 23. Rh7 {[%clk 0:02:21]}  Kc7 {[%clk 0:02:20]} 24. Qh1 {[%clk 0:02:21]}  Rg8 {[%clk 0:02:18]} 25. Qh5 {[%clk 0:01:51]}  Bg7 {[%clk 0:02:06]} 26. Rh1 {[%clk 0:01:44]}  Qf8 {[%clk 0:01:56]} 27. Ke2 {[%clk 0:01:23]}  a6 {[%clk 0:01:56]} 28. Qh2 {[%clk 0:01:12]}  Rh8 {[%clk 0:01:49]} 29. Rxh8 {[%clk 0:01:10]}  Qxh8 {[%clk 0:01:48]} 30. Nh5 {[%clk 0:01:10]}  b5 {[%clk 0:01:33]} 31. Ra1 {[%clk 0:01:09]}  Ra7 {[%clk 0:01:21]} 32. Qg1 {[%clk 0:01:02]}  Bf8 {[%clk 0:01:00]} 33. axb5 {[%clk 0:00:56]}  axb5 {[%clk 0:01:00]} 34. Rxa7+ {[%clk 0:00:57]}  Nxa7 {[%clk 0:01:01]} 35. Qa1 {[%clk 0:00:57]}  Kb7 {[%clk 0:00:58]} 36. Qa5 {[%clk 0:00:57]}  Be7 {[%clk 0:00:49]} 37. b4 {[%clk 0:00:42]}  Bd8 {[%clk 0:00:21]} 38. Qa2 {[%clk 0:00:40]}  Nh6 {[%clk 0:00:15]} 39. Bh3 {[%clk 0:00:28]}  Qg8 {[%clk 0:00:15]} 40. Qxg8 {[%clk 0:00:23]}  Nxg8 {[%clk 0:00:16]} 41. bxc5 {[%clk 0:00:24]}  Be7 {[%clk 0:00:17]} 42. c3 {[%clk 0:00:19]}  dxc3 {[%clk 0:00:16]} 43. Bxc3 {[%clk 0:00:20]}  Bxc5 {[%clk 0:00:16]} 44. d4 {[%clk 0:00:20]}  exd4 {[%clk 0:00:16]} 45. Nxd4 {[%clk 0:00:21]}  b4 {[%clk 0:00:15]} 46. Bb2 {[%clk 0:00:21]}  Be7 {[%clk 0:00:15]} 47. Bg2 {[%clk 0:00:18]}  Nc6 {[%clk 0:00:13]} 48. Nf3 {[%clk 0:00:08]}  Kb6 {[%clk 0:00:12]} 49. e5 {[%clk 0:00:08]}  fxe5 {[%clk 0:00:13]} 50. Nxe5 {[%clk 0:00:09]}  Nxe5 {[%clk 0:00:12]} 51. Bxe5 {[%clk 0:00:10]}  Nh6 {[%clk 0:00:08]} 52. Bf3 {[%clk 0:00:06]}  Kb5 {[%clk 0:00:08]} 53. Kd3 {[%clk 0:00:05]}  Ka4 {[%clk 0:00:08]} 54. Kc4 {[%clk 0:00:04]}  Bb5+ {[%clk 0:00:08]} 55. Kd5 {[%clk 0:00:05]}  b3 {[%clk 0:00:09]} 56. Ke6 {[%clk 0:00:05]}  Bc5 {[%clk 0:00:08]} 57. f6 {[%clk 0:00:05]}  Bc4+ {[%clk 0:00:08]} 58. Kd7 {[%clk 0:00:04]}  Nf7 {[%clk 0:00:09]} 59. Bc3 {[%clk 0:00:03]}  Bb4 {[%clk 0:00:09]} 60. Ba1 {[%clk 0:00:04]}  Ka3 {[%clk 0:00:09]} 61. Ng3 {[%clk 0:00:02]}  b2 {[%clk 0:00:08]} 62. Bxb2+ {[%clk 0:00:03]}  Kxb2 {[%clk 0:00:09]} 63. Ke8 {[%clk 0:00:03]}  Ne5 {[%clk 0:00:09]} 64. Bd1 {[%clk 0:00:02]}  Bb5+ {[%clk 0:00:09]} 65. Kd8 {[%clk 0:00:02]}  Ba5+ {[%clk 0:00:09]} 66. Kc8 {[%clk 0:00:02]}  Ba6+ {[%clk 0:00:09]} 67. Kb8 {[%clk 0:00:02]}  Bc4 {[%clk 0:00:09]} 68. Be2 {[%clk 0:00:01]}  Bxe2 {[%clk 0:00:08]} 69. Nxe2 {[%clk 0:00:02]}  Nd7+ {[%clk 0:00:09]} 70. Kc8 {[%clk 0:00:02]}  Nxf6 {[%clk 0:00:10]} 71. Nd4 {[%clk 0:00:03]}  Nxg4 {[%clk 0:00:08]} 72. Nf3 {[%clk 0:00:04]}  Bd2 {[%clk 0:00:04]} 73. Nxd2 {[%clk 0:00:04]}  Ne3 {[%clk 0:00:04]} 74. Ne4 {[%clk 0:00:04]}  g4 {[%clk 0:00:04]} 75. Kd7 {[%clk 0:00:05]}  Kc2 {[%clk 0:00:05]} 76. Ke6 {[%clk 0:00:06]}  Kd3 {[%clk 0:00:05]} 77. Ng3 {[%clk 0:00:06]}  Kd2 {[%clk 0:00:03]} 78. Ke5 {[%clk 0:00:07]}  Ke1 {[%clk 0:00:04]} 79. Kf4 {[%clk 0:00:07]}  Kf2 {[%clk 0:00:05]} 80. Nf5 {[%clk 0:00:04]}  Nxf5 {[%clk 0:00:02]} 81. Kxg4 {[%clk 0:00:04]} 1/2-1/2


[Site "https://www.chess.com"]